bitfinex-derivatives/quotes_SOLF0:USTF0_20240816
["timestamp","ask_amount","ask_price","bid_price","bid_amount"]
[1723786915370,13.26140221,142.72,142.61,10.76]
[1723786915371,10.76,142.68,142.61,10.76]
[1723786915574,10.76,142.68,142.62,3.45634062]
[1723786916684,0.044459,142.66,142.64,2.4751961]
[1723786918780,0.044459,142.66,142.65,2.4532]
[1723786926888,0.044459,142.66,142.64,0.0218961]
[1723786926889,2.452,142.72,142.64,10.7818961]
[1723786927091,2.452,142.72,142.64,10.76]
[1723786927886,2.452,142.72,142.69,2.4525]
[1723786928086,2.49911833,142.72,142.69,2.4525]
[1723786928789,2.49911833,142.72,142.68,2.4526]
[1723786928989,10.76,142.71,142.68,2.4526]
[1723786933079,13.2122,142.71,142.67,2.50649801]
[1723786935183,10.76,142.71,142.68,2.4526]
[1723786935382,10.76,142.71,142.67,0.05369801]
[1723786935885,13.2123,142.71,142.67,2.50639801]
[1723786936087,10.76,142.71,142.67,0.05369801]
[1723786936591,10.76,142.71,142.68,2.4526]
[1723786942795,10.76,142.71,142.67,0.05369801]
[1723786942995,0.04711833,142.72,142.67,0.05369801]
[1723786944694,2.49921833,142.72,142.68,2.4526]
[1723786947601,0.04711833,142.72,142.67,0.05369801]
[1723786947802,0.04711833,142.72,142.67,10.81369801]
[1723786948303,0.04711833,142.72,142.67,1.38109801]
[1723786948695,0.04711833,142.72,142.7,2.4523]
[1723786950002,0.04711833,142.72,142.71,2.4521]
[1723786952903,0.04711833,142.72,142.7,0.052538]
[1723786953504,0.04711833,142.72,142.7,2.504738]
[1723786962824,2.49911833,142.72,142.7,0.052538]
[1723786963023,0.04711833,142.72,142.7,0.052538]
[1723786964733,0.04711833,142.72,142.7,2.504838]
[1723786965825,0.04711833,142.72,142.71,2.4521]
[1723786969330,5.6227,142.81,142.77,2.451]
[1723786969533,1.2627,142.81,142.77,2.451]
[1723786970322,1.2627,142.81,142.74,10.76]
[1723786970323,10.76,142.79,142.76,2.4512]
[1723786970527,10.76,142.79,142.78,0.04734341]
[1723786972937,13.2108,142.79,142.78,0.04734341]
[1723786973633,8.20282587,142.8,142.78,0.04734341]
[1723786973827,18.96282587,142.8,142.78,0.04734341]
[1723786975437,2.4508,142.79,142.78,0.04734341]
[1723786981741,15.17162587,142.8,142.78,0.04734341]
[1723786982837,17.62222587,142.8,142.78,0.04734341]
[1723786983039,15.17162587,142.8,142.78,0.04734341]
[1723786983338,17.62222587,142.8,142.78,0.04734341]
[1723786985132,2.4508,142.79,142.78,0.04734341]
[1723786987241,2.4514,142.76,142.69,10.76]
[1723786987547,2.4514,142.76,142.69,15.1]
[1723786987548,10.76,142.76,142.69,15.1]
[1723786987748,10.76,142.76,142.72,2.4518]
[1723786988044,10.76,142.76,142.72,5.92619504]
[1723786988235,10.76,142.76,142.69,15.1]
[1723786988438,0.04651402,142.75,142.73,0.05375597]
[1723786994043,13.2116,142.74,142.73,0.05375597]
[1723786994551,2.4516,142.74,142.73,0.05375597]
[1723786994851,10.76,142.74,142.73,0.05375597]
[1723786995052,17.59801402,142.75,142.73,0.05375597]
[1723786997249,4.38651402,142.75,142.73,0.05375597]
[1723786997450,0.04651402,142.75,142.73,0.05375597]
[1723787003060,5.96904239,142.75,142.73,0.05375597]
[1723787004947,2.49801402,142.75,142.73,0.05375597]
[1723787005354,5.97243879,142.75,142.73,0.05375597]
[1723787007161,2.49801402,142.75,142.73,0.05375597]
[1723787007860,0.04651402,142.75,142.73,0.05375597]
[1723787012861,2.49811402,142.75,142.73,0.05375597]
[1723787014369,0.04651402,142.75,142.73,0.05375597]
[1723787014554,3.56998577,142.75,142.73,0.05375597]
[1723787015455,0.04651402,142.75,142.73,0.05375597]
[1723787015861,5.97094036,142.75,142.73,0.05375597]
[1723787016563,2.4516,142.74,142.73,0.05375597]
[1723787016758,3.51954036,142.75,142.73,0.05375597]
[1723787016968,14.27954036,142.75,142.73,0.05375597]
[1723787017170,16.73104036,142.75,142.73,0.05375597]
[1723787018566,10.80651402,142.75,142.73,0.05375597]
[1723787018772,0.04651402,142.75,142.73,0.05375597]
[1723787027064,10.80651402,142.75,142.73,0.05375597]
[1723787027873,13.25811402,142.75,142.73,0.05375597]
[1723787028277,0.04651402,142.75,142.73,0.05375597]
[1723787029782,0.04651402,142.75,142.73,2.50555597]
[1723787033889,0.04651402,142.75,142.73,0.05375597]
[1723787034984,0.04651402,142.75,142.73,2.50535597]
[1723787035585,0.04651402,142.75,142.73,10.81375597]
[1723787036092,60.36903979,142.82,142.74,10.76]
[1723787036388,71.12903979,142.82,142.74,12.0213]
[1723787036978,15.1,142.82,142.74,12.0213]
[1723787037191,0.05136672,142.79,142.77,0.05051097]
[1723787037688,0.05136672,142.79,142.78,2.4509]
[1723787039179,0.05136672,142.79,142.77,2.50151097]
[1723787041380,0.05136672,142.79,142.77,0.05051097]
[1723787044295,2.50216672,142.79,142.77,0.05051097]
[1723787045096,0.05136672,142.79,142.77,0.05051097]
[1723787050800,0.05136672,142.79,142.77,2.50161097]
[1723787052898,0.05136672,142.79,142.77,0.05051097]
[1723787055295,0.05136672,142.79,142.78,13.2109]
[1723787055797,0.05136672,142.79,142.78,16.75730539]
[1723787058497,0.05136672,142.79,142.78,13.2109]
[1723787058796,0.05136672,142.79,142.78,2.4509]
[1723787060297,0.05136672,142.79,142.77,0.05051097]
[1723787061500,0.05136672,142.79,142.78,2.4509]
[1723787065695,0.05136672,142.79,142.78,5.89910876]
[1723787066099,0.05136672,142.79,142.78,2.4509]
[1723787066405,0.05136672,142.79,142.78,5.99970683]
[1723787076310,0.05136672,142.79,142.78,16.75970683]
[1723787077913,0.05136672,142.79,142.78,5.99970683]
[1723787078114,0.05136672,142.79,142.78,16.75970683]
[1723787083917,3.6871,142.86,142.78,14.30880683]
[1723787084116,3.6871,142.86,142.82,2.4502]
[1723787084911,2.4497,142.85,142.82,2.4502]
[1723787085220,2.49930698,142.85,142.82,2.49462908]
[1723787087824,2.49930698,142.85,142.82,0.04442908]
[1723787088212,2.45,142.84,142.82,0.04442908]
[1723787089915,2.4501,142.83,142.82,0.04442908]
[1723787090120,2.4501,142.83,142.79,2.4507]
[1723787091218,2.4501,142.83,142.8,0.05073969]
[1723787092328,6.331,142.84,142.8,2.50133969]
[1723787093029,2.4501,142.83,142.8,2.50133969]
[1723787095129,2.4503,142.82,142.8,0.05073969]
[1723787095920,2.4501,142.83,142.8,0.05073969]
[1723787096825,2.4503,142.82,142.8,0.05073969]
[1723787100518,18.13553775,142.84,142.8,0.05073969]
[1723787100519,2.4504,142.81,142.8,0.05073969]
[1723787100728,10.76,142.83,142.75,10.76]
[1723787101633,2.4505,142.81,142.77,13.211]
[1723787101831,2.4505,142.81,142.77,2.451]
[1723787102131,0.04766578,142.8,142.78,0.04846592]
[1723787102733,0.04766578,142.8,142.78,2.49926592]
[1723787103431,0.04766578,142.8,142.79,2.4508]
[1723787103829,2.4492,142.89,142.82,2.4501]
[1723787104131,228.0,142.96,142.79,10.76]
[1723787104132,10.76,142.86,142.79,10.76]
[1723787104334,10.76,142.86,142.77,10.76]
[1723787104632,10.76,142.84,142.77,10.76]
[1723787104829,10.76,142.84,142.76,4.34]
[1723787105026,0.05024238,142.82,142.79,0.05091731]
[1723787106139,2.50064238,142.82,142.79,0.05091731]
[1723787106338,13.26064238,142.82,142.79,0.05091731]
[1723787106831,0.05024238,142.82,142.79,0.05091731]
[1723787107339,0.05024238,142.82,142.79,2.50151731]
[1723787108832,10.81024238,142.82,142.79,0.05091731]
[1723787109242,10.76,142.8,142.74,4.34]
[1723787109436,13.2107,142.8,142.75,2.4514]
[1723787110439,2.4509,142.78,142.76,0.04851591]
[1723787110941,5.0594,142.78,142.76,0.04851591]
[1723787111838,10.76,142.77,142.58,28.0]
[1723787112040,15.1,142.77,142.67,4.34]
[1723787112233,3.49986018,142.76,142.71,2.4521]
[1723787113442,0.04760454,142.75,142.71,2.4521]
[1723787113642,0.04760454,142.75,142.7,10.76]
[1723787114246,0.04760454,142.75,142.72,2.4519]
[1723787115445,0.04760454,142.75,142.7,3.48164451]
[1723787115642,0.04760454,142.75,142.72,10.76]
[1723787115845,0.04760454,142.75,142.72,13.2118]
[1723787120753,0.04760454,142.75,142.67,4.34]
[1723787120955,0.04760454,142.75,142.69,10.76]
[1723787121554,0.04760454,142.75,142.71,2.4521]
[1723787122156,2.49910454,142.75,142.71,2.4521]
[1723787123553,2.4517,142.74,142.68,10.76]
[1723787124259,0.04854867,142.72,142.69,2.4524]
[1723787124852,0.04854867,142.72,142.7,2.4523]
[1723787125956,2.50064867,142.72,142.68,2.4525]
[1723787126256,0.04854867,142.72,142.68,2.4525]
[1723787127864,2.50054867,142.72,142.68,2.4525]
[1723787128365,10.76,142.7,142.63,2.544]
[1723787128567,10.76,142.7,142.63,13.304]
[1723787128568,0.04822491,142.68,142.63,13.304]
[1723787129667,0.04822491,142.68,142.62,14.21634062]
[1723787129861,0.04822491,142.68,142.64,10.76]
[1723787130057,0.04822491,142.68,142.65,10.76]
[1723787130668,0.04822491,142.68,142.66,2.453]
[1723787131064,2.50082491,142.68,142.64,2.4532]
[1723787131663,2.453,142.67,142.62,3.45634062]
[1723787131967,2.453,142.67,142.63,10.76]
[1723787132667,2.453,142.67,142.64,2.4533]
[1723787132863,2.50092491,142.68,142.63,10.76]
[1723787133172,0.04822491,142.68,142.63,10.76]
[1723787133367,0.04822491,142.68,142.65,2.4531]
[1723787134671,0.04822491,142.68,142.64,2.4533]
[1723787134869,2.50092491,142.68,142.64,13.2133]
[1723787135069,2.50092491,142.68,142.65,2.4532]
[1723787135564,0.04822491,142.68,142.66,2.453]
[1723787136369,0.04822491,142.68,142.64,10.76]
[1723787137268,2.50092491,142.68,142.64,13.2132]
[1723787138369,2.50092491,142.68,142.65,2.4532]
[1723787140061,0.04822491,142.68,142.65,2.4532]
[1723787140870,0.04822491,142.68,142.64,10.76]
[1723787141071,0.04822491,142.68,142.65,10.76]
[1723787141571,0.04822491,142.68,142.64,10.76]
[1723787141774,0.04822491,142.68,142.65,2.4531]
[1723787142474,0.04822491,142.68,142.61,9.13169274]
[1723787142475,2.50102491,142.68,142.64,2.4533]
[1723787144871,0.04822491,142.68,142.65,2.453]
[1723787145081,7.32042092,142.83,142.61,1.2782]
[1723787145277,2.6694,142.87,142.8,10.76]
[1723787145470,6.24281766,142.87,142.8,10.76]
[1723787145670,8.69221766,142.87,142.8,13.2104]
[1723787145874,4.88481766,142.87,142.8,10.76]
[1723787146174,4.88481766,142.87,142.8,15.1]
[1723787146473,0.05139706,142.85,142.82,0.04970467]
[1723787147769,0.05139706,142.85,142.83,2.45]
[1723787149577,0.05139706,142.85,142.82,2.49990467]
[1723787155775,0.05139706,142.85,142.83,2.45]
[1723787158875,0.05139706,142.85,142.82,0.04970467]
[1723787159685,0.05139706,142.85,142.83,2.4501]
[1723787159875,0.05139706,142.85,142.82,0.04970467]
[1723787160182,0.05139706,142.85,142.84,2.4499]
[1723787160480,0.05139706,142.85,142.82,0.04970467]
[1723787160677,0.05139706,142.85,142.83,2.4501]
[1723787161481,0.05139706,142.85,142.84,2.4499]
[1723787162385,3.5393102,142.92,142.82,28.1244]
[1723787162684,2.4492,142.89,142.84,2.4498]
[1723787162982,2.4492,142.89,142.83,4.34]
[1723787163374,0.04687642,142.87,142.85,0.04905218]
[1723787163974,0.04687642,142.87,142.85,2.49865218]
[1723787164276,0.04687642,142.87,142.85,0.04905218]
[1723787164477,0.04687642,142.87,142.86,2.4496]
[1723787166974,0.04687642,142.87,142.85,0.04905218]
[1723787167480,0.04687642,142.87,142.86,2.4496]
[1723787172183,0.04687642,142.87,142.85,0.04905218]
[1723787173187,10.75,142.86,142.8,4.34]
[1723787173486,10.75,142.86,142.79,2.4507]
[1723787173487,2.45,142.84,142.79,2.4507]
[1723787173686,5.97036831,142.84,142.79,2.4507]
[1723787174482,0.04570893,142.83,142.8,0.04695595]
[1723787176285,0.04570893,142.83,142.8,2.49745595]
[1723787176892,2.49580893,142.83,142.8,0.04695595]
[1723787177887,0.04570893,142.83,142.8,2.49755595]
[1723787181388,0.04570893,142.83,142.8,0.04695595]
[1723787181891,6.8904,142.82,142.8,0.04695595]
[1723787183998,4.44,142.82,142.8,0.04695595]
[1723787184290,0.04570893,142.83,142.8,0.04695595]
[1723787184482,0.04570893,142.83,142.81,2.4503]
[1723787184687,0.04570893,142.83,142.8,0.04695595]
[1723787185488,0.04570893,142.83,142.82,2.4502]
[1723787188493,0.04570893,142.83,142.81,2.4504]
[1723787188698,0.04570893,142.83,142.8,2.70835595]
[1723787189389,3.9288,142.91,142.81,26.89]
[1723787189589,4.44,142.89,142.83,26.89]
[1723787189993,2.449,142.9,142.86,2.4495]
[1723787190395,2.449,142.9,142.87,0.04474761]
[1723787190600,0.05210324,142.89,142.87,0.04474761]
[1723787192885,2.50120324,142.89,142.87,0.04474761]
[1723787193392,2.4492,142.88,142.87,0.04474761]
[1723787194604,2.50120324,142.89,142.87,0.04474761]
[1723787197787,0.05210324,142.89,142.87,0.04474761]
[1723787198198,0.05210324,142.89,142.87,2.49414761]
[1723787199300,0.05210324,142.89,142.87,0.04474761]
[1723787200604,2.50110324,142.89,142.87,0.04474761]
[1723787201294,0.05210324,142.89,142.87,0.04474761]
[1723787206506,0.05210324,142.89,142.87,13.24414761]
[1723787207806,0.05210324,142.89,142.87,2.49414761]
[1723787209108,0.05210324,142.89,142.87,0.04474761]
[1723787210108,0.05210324,142.89,142.87,2.49404761]
[1723787215514,0.05210324,142.89,142.87,0.04474761]
[1723787217005,2.4492,142.88,142.87,0.04474761]
[1723787217204,0.05210324,142.89,142.87,0.04474761]
[1723787217911,0.05210324,142.89,142.87,10.79474761]
[1723787218303,0.05210324,142.89,142.87,13.24404761]
[1723787220806,0.05210324,142.89,142.88,2.4492]
[1723787223521,2.4482,142.94,142.9,2.4488]
[1723787223717,2.4482,142.94,142.91,10.75]
[1723787224307,2.4481,142.95,142.91,13.1987]
[1723787224513,4.34,142.98,142.93,10.75]
[1723787224717,3.54632306,143.02,142.96,10.75]
[1723787224919,0.04879755,142.97,142.96,10.75]
[1723787225211,13.439,143.03,142.98,0.04749959]
[1723787225212,3.5256805,143.02,142.98,0.04749959]
[1723787225418,3.5256805,143.02,142.96,10.75]
[1723787225419,3.5256805,143.02,142.96,13.1978]
[1723787225615,0.0456016,142.98,142.96,10.75]
[1723787225818,0.0456016,142.98,142.97,10.75]
[1723787227913,0.0456016,142.98,142.96,0.05108949]
[1723787228117,47.17719867,143.15,142.97,10.75]
[1723787228118,4.34,143.06,142.97,10.75]
[1723787228313,1.3052,143.11,143.05,10.75]
[1723787229823,1.3052,143.11,143.07,0.0467124]
[1723787229824,2.4989944,143.09,143.07,0.0467124]
[1723787230421,2.4458,143.08,143.07,0.0467124]
[1723787232015,4.34,143.08,142.99,1.3326]
[1723787232312,10.75,143.09,143.01,2.447]
[1723787232514,4.34,143.08,143.03,10.75]
[1723787233318,0.04500637,143.07,143.04,0.05208117]
[1723787233513,2.4463,143.06,143.04,0.05208117]
[1723787233720,4.34,143.06,143.04,10.80208117]
[1723787233917,2.49100637,143.07,143.04,10.80208117]
[1723787234815,0.04500637,143.07,143.04,10.80208117]
[1723787236831,0.04500637,143.07,143.06,10.75]
[1723787237128,4.46,143.13,143.06,10.75]
[1723787237428,2.4453,143.11,143.1,10.75]
[1723787237630,15.21,143.13,143.07,10.75]
[1723787238230,262.983,143.27,143.09,10.75]
[1723787238425,0.05360779,143.11,143.09,0.04932939]
[1723787238629,4.46,143.15,143.14,0.04515451]
[1723787238831,0.0451154,143.09,143.08,10.75]
[1723787239125,4.46,143.15,143.08,10.75]
[1723787239326,4.46,143.15,143.08,13.1958]
[1723787239529,0.04430981,143.13,143.1,0.04842608]
[1723787239827,2.4452,143.12,143.1,0.04842608]
[1723787241029,2.4453,143.11,143.1,0.04842608]
[1723787243532,26.85,143.11,142.73,66.44134224]
[1723787243737,5.765,143.1,143.0,28.1003]
[1723787244334,2.4461,143.07,143.02,2.4467]
[1723787244635,0.04749823,143.06,143.03,0.04904799]
[1723787245940,0.04749823,143.06,143.03,2.49554799]
[1723787246138,0.04749823,143.06,143.03,0.04904799]
[1723787247335,2.4463,143.05,143.03,0.04904799]
[1723787248636,2.4465,143.04,143.03,0.04904799]
[1723787252534,4.50749823,143.06,143.03,0.04904799]
[1723787253142,0.04749823,143.06,143.03,0.04904799]
[1723787253549,2.49369823,143.06,143.03,0.04904799]
[1723787254546,2.4463,143.05,143.03,0.04904799]
[1723787256435,0.04749823,143.06,143.03,0.04904799]
[1723787256944,2.4464,143.05,143.03,0.04904799]
[1723787260152,2.4465,143.04,143.03,0.04904799]
[1723787260651,2.4464,143.05,143.03,0.04904799]
[1723787261051,2.49369823,143.06,143.03,0.04904799]
[1723787263954,2.4463,143.05,143.03,0.04904799]
[1723787274960,2.4465,143.04,143.03,0.04904799]
[1723787275148,0.04749823,143.06,143.03,0.04904799]
[1723787276759,2.4463,143.05,143.03,0.04904799]
[1723787280164,2.49369823,143.06,143.03,0.04904799]
[1723787281965,2.4464,143.05,143.03,0.04904799]
[1723787283173,10.74,143.02,142.93,3.8343]
[1723787283373,10.74,142.99,142.93,1.3005]
[1723787283776,15.14,142.99,142.93,1.3005]
[1723787284071,2.4478,142.97,142.95,0.04961353]
[1723787284375,2.49287101,142.97,142.95,0.04961353]
[1723787285479,2.4478,142.96,142.95,0.04961353]
[1723787285974,13.1878,142.96,142.95,0.04961353]
[1723787286675,14.22282669,142.96,142.87,5.7005]
[1723787286873,10.74,142.94,142.87,10.74]
[1723787287276,10.74,142.92,142.86,1.3013]
[1723787287474,10.74,142.92,142.85,10.74]
[1723787287870,0.05087648,142.9,142.87,0.05329166]
[1723787288582,10.74,143.0,142.88,15.14]
[1723787288875,10.74,143.0,142.93,10.74]
[1723787289471,0.0454391,142.97,142.94,0.04682727]
[1723787289676,2.4932391,142.97,142.94,0.04682727]
[1723787290476,0.0454391,142.97,142.94,0.04682727]
[1723787292677,2.4479,142.96,142.94,0.04682727]
[1723787292881,0.0454391,142.97,142.94,0.04682727]
[1723787293788,2.4931391,142.97,142.94,0.04682727]
[1723787293986,0.0454391,142.97,142.94,0.04682727]
[1723787294982,0.0454391,142.97,142.95,2.448]
[1723787298988,0.0454391,142.97,142.94,0.04682727]
[1723787300785,2.4932391,142.97,142.94,0.04682727]
[1723787302089,2.4479,142.96,142.94,0.04682727]
[1723787307501,2.448,142.95,142.94,0.04682727]
[1723787307701,29.318,142.95,142.94,0.04682727]
[1723787307896,29.318,142.95,142.86,28.1196]
[1723787307897,3.4813215,142.94,142.86,28.1196]
[1723787308700,2.4486,142.92,142.88,2.4491]
[1723787308900,0.0447493,142.91,142.89,0.05215828]
[1723787309505,0.0447493,142.91,142.89,2.50115828]
[1723787309695,0.0447493,142.91,142.89,0.05215828]
[1723787310296,0.0447493,142.91,142.9,2.4489]
[1723787314894,2.4477,142.97,142.93,2.4483]
[1723787315121,31.31,142.99,142.93,2.4483]
[1723787315404,2.4478,142.96,142.93,2.4483]
[1723787315604,31.31,142.99,142.9,28.1971]
[1723787315605,31.31,142.99,142.91,2.4486]
[1723787315997,2.448,142.96,142.94,0.05279386]
[1723787316198,2.49890839,142.96,142.94,0.05279386]
[1723787316594,2.448,142.95,142.94,0.05279386]
[1723787316798,5.93876479,142.95,142.94,0.05279386]
[1723787316995,13.198,142.95,142.94,0.05279386]
[1723787321098,14.2870811,142.95,142.86,1.3271]
[1723787321303,14.2870811,142.95,142.87,10.75]
[1723787321498,18.7270811,142.95,142.87,10.75]
[1723787321711,2.4485,142.92,142.88,2.4491]
[1723787322210,0.04514873,142.91,142.89,0.05259006]
[1723787322806,2.49384873,142.91,142.89,0.05259006]
[1723787323211,0.04514873,142.91,142.89,0.05259006]
[1723787323511,2.4489,142.9,142.89,0.05259006]
[1723787323811,0.04514873,142.91,142.89,0.05259006]
[1723787324207,0.04514873,142.91,142.89,10.80259006]
[1723787324802,0.04514873,142.91,142.9,2.4489]
[1723787327014,0.04514873,142.91,142.9,13.1989]
[1723787327208,2.6152,142.99,142.93,10.75]
[1723787327405,2.6152,142.99,142.9,3.4505612]
[1723787327406,2.4475,142.99,142.95,10.75]
[1723787327906,4.38,143.0,142.95,10.75]
[1723787328111,6.8273,143.0,142.95,10.75]
[1723787328312,6.8273,143.0,142.95,13.198]
[1723787328512,0.04951446,142.99,142.96,0.05069831]
[1723787330409,2.4477,142.97,142.96,0.05069831]
[1723787331718,2.4476,142.98,142.96,0.05069831]
[1723787333416,2.4485,142.92,142.91,4.38]
[1723787333612,5.6938,143.0,142.86,26.87]
[1723787333613,26.87,142.96,142.86,26.87]
[1723787334009,2.4482,142.95,142.89,2.4489]
[1723787334214,6.8282,142.95,142.89,2.4489]
[1723787334414,4.38,142.95,142.89,2.4489]
[1723787334618,0.04570881,142.93,142.91,0.04760934]
[1723787337522,0.04570881,142.93,142.91,3.5349095]
[1723787337723,2.4479,142.96,142.91,3.5349095]
[1723787337925,2.4479,142.96,142.91,4.8031095]
[1723787338822,0.05278318,142.95,142.91,7.2517095]
[1723787339830,0.05278318,142.95,142.92,2.4484]
[1723787340139,0.05278318,142.95,142.91,4.8031095]
[1723787340522,0.05278318,142.95,142.93,2.4483]
[1723787342428,0.05278318,142.95,142.92,2.4485]
[1723787343125,2.50078318,142.95,142.91,3.76450934]
[1723787343629,2.50078318,142.95,142.91,7.26461388]
[1723787343830,2.4482,142.94,142.91,1.31580934]
[1723787344022,0.05278318,142.95,142.91,1.31580934]
[1723787344023,0.05278318,142.95,142.91,0.04760934]
[1723787344629,2.4483,142.94,142.91,0.04760934]
[1723787345326,2.50088318,142.95,142.91,2.49630934]
[1723787345525,0.05278318,142.95,142.91,0.04760934]
[1723787346221,2.4483,142.94,142.91,0.04760934]
[1723787346427,0.05278318,142.95,142.91,0.04760934]
[1723787346626,2.50088318,142.95,142.91,2.49630934]
[1723787347337,0.05278318,142.95,142.92,2.4485]
[1723787347824,0.05278318,142.95,142.91,0.04760934]
[1723787348032,0.05278318,142.95,142.91,2.49620934]
[1723787348228,2.50078318,142.95,142.91,2.49620934]
[1723787348424,0.05278318,142.95,142.91,3.47869345]
[1723787348627,0.05278318,142.95,142.92,2.4485]
[1723787349124,0.05278318,142.95,142.92,6.03245766]
[1723787349925,0.05278318,142.95,142.92,2.4485]
[1723787350227,0.05278318,142.95,142.92,5.89459767]
[1723787350428,0.05278318,142.95,142.93,2.4483]
[1723787352636,0.05278318,142.95,142.94,2.4482]
[1723787353031,0.05278318,142.95,142.92,7.82609767]
[1723787353333,0.05278318,142.95,142.92,15.13]
[1723787353633,0.05278318,142.95,142.93,2.4484]
[1723787354027,0.05278318,142.95,142.92,18.70970789]
[1723787354835,0.05278318,142.95,142.94,2.4482]
[1723787355430,0.05278318,142.95,142.94,13.1982]
[1723787355630,10.75,143.0,142.95,2.4479]
[1723787356130,10.75,143.0,142.96,2.4478]
[1723787356731,13.1973,143.0,142.96,2.4478]
[1723787357127,0.04459514,142.99,142.97,0.04901797]
[1723787357334,2.49199514,142.99,142.97,0.04901797]
[1723787361243,0.04459514,142.99,142.97,0.04901797]
[1723787363036,0.04459514,142.99,142.97,2.49661797]
[1723787367647,0.04459514,142.99,142.97,0.04901797]
[1723787368447,0.04459514,142.99,142.97,2.49661797]
[1723787368842,0.04459514,142.99,142.97,0.04901797]
[1723787369244,0.04459514,142.99,142.98,2.4475]
[1723787369649,0.04459514,142.99,142.97,0.04901797]
[1723787369949,0.04459514,142.99,142.97,2.49661797]
[1723787372445,0.04459514,142.99,142.98,2.4475]
[1723787379951,0.04459514,142.99,142.97,0.04901797]
[1723787381042,0.04459514,142.99,142.98,2.4475]
[1723787399564,0.04459514,142.99,142.97,2.49661797]
[1723787400377,0.04459514,142.99,142.98,2.4475]
[1723787402470,0.04459514,142.99,142.98,13.1975]
[1723787409682,0.04459514,142.99,142.98,17.5975]
[1723787412085,0.04459514,142.99,142.98,6.8475]
[1723787412281,0.04459514,142.99,142.98,2.4475]
[1723787412580,0.04459514,142.99,142.97,15.19901797]
[1723787412581,0.04459514,142.99,142.97,6.89671797]
[1723787412785,0.04459514,142.99,142.97,2.49671797]
[1723787412981,0.04459514,142.99,142.97,0.04901797]
[1723787413185,2.4475,142.98,142.97,0.04901797]
[1723787413975,2.4475,142.98,142.94,2.4481]
[1723787414181,2.4477,142.97,142.93,6.8483]
[1723787414381,10.75,142.98,142.93,4.4]
[1723787414582,12.0996,142.98,142.92,10.75]
[1723787415188,4.87345353,142.98,142.94,0.05130118]
[1723787415388,10.75,142.95,142.82,2.4912]
[1723787415686,10.75,142.91,142.84,10.75]
[1723787416078,13.1988,142.91,142.86,2.4495]
[1723787416278,0.05260496,142.9,142.86,2.4495]
[1723787416586,0.05260496,142.9,142.87,0.04960677]
[1723787416799,2.50150496,142.9,142.87,0.04960677]
[1723787417387,0.05260496,142.9,142.87,0.04960677]
[1723787417688,0.05260496,142.9,142.87,13.24880677]
[1723787417892,0.05260496,142.9,142.89,10.75]
[1723787418683,4.36,142.96,142.9,3.43705305]
[1723787418895,4.36,142.97,142.93,2.4483]
[1723787419190,4.36,142.97,142.94,10.75]
[1723787419494,1.3202,142.99,142.94,10.75]
[1723787419694,0.04966219,142.98,142.95,0.04899795]
[1723787419888,0.04966219,142.98,142.96,10.75]
[1723787420088,0.04966219,142.98,142.97,10.75]
[1723787420590,0.04966219,142.98,142.97,13.1977]
[1723787421190,0.04966219,142.98,142.97,10.75]
[1723787421686,0.04966219,142.98,142.96,2.4478]
[1723787422491,0.04966219,142.98,142.95,2.49699795]
[1723787422694,0.04966219,142.98,142.95,0.04899795]
[1723787424686,2.49716219,142.98,142.95,0.04899795]
[1723787424890,0.04966219,142.98,142.95,0.04899795]
[1723787425895,0.04966219,142.98,142.95,2.49689795]
[1723787427396,0.04966219,142.98,142.97,2.4477]
[1723787428589,2.4465,143.04,142.96,32.5455]
[1723787428788,4.36,143.07,143.0,26.86]
[1723787428988,2.5789,143.1,143.01,26.86]
[1723787429192,6.9389,143.1,143.01,26.86]
[1723787429594,6.9389,143.1,143.01,31.22]
[1723787429794,0.04623652,143.07,143.04,0.04753738]
[1723787430500,0.04623652,143.07,143.04,2.49403738]
[1723787431502,2.49223652,143.07,143.04,0.04753738]
[1723787431995,0.04623652,143.07,143.04,26.90753738]
[1723787432197,0.04623652,143.07,143.06,29.3061]
[1723787432404,26.86,143.17,143.06,26.86]
[1723787432602,2.4451,143.13,143.08,29.3057]
[1723787433297,2.4451,143.12,143.09,4.36]
[1723787433498,0.05168027,143.12,143.09,0.05285842]